fUSD/lending_fUSD_20251102
["ID","MTS","AMOUNT","RATE_DAILY","PERIOD"]
[392878670,1762105392750,500.0,0.00030136,120]
[392878676,1762105393197,500.0,0.00030136,120]
[392878679,1762105393476,500.0,0.00030136,120]
[392878690,1762105394087,375.2257181,0.00030136,120]
[392878705,1762105394813,500.0,0.00030136,120]
[392878730,1762105395872,500.0,0.00030136,120]
[392878743,1762105396848,500.0,0.00030136,120]
[392878745,1762105397265,500.0,0.00030136,120]
[392878748,1762105397936,1326.69,0.00030136,120]
[392878749,1762105398246,500.0,0.00030136,120]
[392878750,1762105398311,626.3,0.00030136,120]
[392878751,1762105398625,1181.32,0.00030136,120]
[392878752,1762105398746,500.0,0.00030136,120]
[392878753,1762105398814,518.53253854,0.00030136,120]
[392878754,1762105398898,514.11756041,0.00030136,120]
[392878755,1762105398977,894.22,0.00030136,120]
[392878758,1762105399444,500.0,0.00030136,120]
[392878788,1762105402780,500.0,0.00030136,120]
[392878793,1762105403250,500.0,0.00030136,120]
[392878796,1762105403420,500.0,0.00030136,120]
[392878798,1762105403729,500.0,0.00030136,120]
[392878799,1762105403800,500.0,0.00030136,120]
[392878802,1762105404217,500.0,0.00030136,120]
[392878804,1762105404464,500.0,0.00030136,120]
[392878806,1762105404609,500.0,0.00030136,120]
[392878813,1762105405465,511.24405513,0.00030136,120]
[392878815,1762105405500,500.0,0.00030136,120]
[392878817,1762105405946,592.50972798,0.00030136,120]
[392878819,1762105406088,500.0,0.00030136,120]
[392878821,1762105406538,500.0,0.00030136,120]
[392878823,1762105406672,500.0,0.00030136,120]
[392878825,1762105407092,500.0,0.00030136,120]
[392878828,1762105407768,571.46285941,0.00030136,120]
[392878829,1762105407819,500.0,0.00030136,120]
[392878832,1762105408389,1494.36,0.00030136,120]
[392878834,1762105408545,500.0,0.00030136,120]
[392878842,1762105410478,500.0,0.00030136,120]
[392878844,1762105410654,626.63,0.00030136,120]
[392878845,1762105410718,500.0,0.00030136,120]
[392878847,1762105410831,500.0,0.00030136,120]
[392878851,1762105411171,500.0,0.00030136,120]
[392878862,1762105412219,500.0,0.00030136,120]
[392878876,1762105413415,516.10460398,0.00030136,120]
[392878877,1762105413464,500.0,0.00030136,120]
[392878881,1762105413967,500.0,0.00030136,120]
[392878882,1762105414122,500.0,0.00030136,120]
[392878886,1762105414758,500.0,0.00030136,120]
[392878888,1762105415021,500.0,0.00030136,120]
[392878889,1762105415055,500.0,0.00030136,120]
[392878890,1762105415096,525.41930088,0.00030136,120]
[392878892,1762105415152,500.0,0.00030136,120]
[392878893,1762105415193,524.71115284,0.00030136,120]
[392878895,1762105415401,500.0,0.00030136,120]
[392878896,1762105415618,500.0,0.00030136,120]
[392878898,1762105415705,500.0,0.00030136,120]
[392878903,1762105416400,500.0,0.00030136,120]
[392878904,1762105416446,500.0,0.00030136,120]
[392878905,1762105416525,500.0,0.00030136,120]
[392878917,1762105417674,684.06,0.00030136,120]
[392878923,1762105418420,500.0,0.00030136,120]
[392878928,1762105418618,512.1889674,0.00030136,120]
[392878929,1762105418682,500.0,0.00030136,120]
[392878936,1762105419122,500.0,0.00030136,120]
[392878938,1762105419432,500.0,0.00030136,120]
[392878940,1762105419499,500.0,0.00030136,120]
[392878942,1762105420278,500.0,0.00030136,120]
[392878944,1762105420404,500.0,0.00030136,120]
[392878945,1762105420447,455.08208474,0.00030136,120]
[392878947,1762105420746,500.0,0.00030136,120]
[392878955,1762105421769,672.87,0.00030136,120]
[392878960,1762105422100,282.63637422,0.00030136,120]
[392878962,1762105422279,627.8343867,0.00030136,120]
[392878966,1762105422509,457.50180099,0.00030136,120]
[392878968,1762105422564,500.0,0.00030136,120]
[392878980,1762105423303,1000.0,0.00013699,2]
[392879006,1762105424811,1566.01,0.00030136,120]
[392879022,1762105425656,500.0,0.00030136,120]
[392879024,1762105425756,524.70951638,0.00030136,120]
[392879029,1762105425903,500.0,0.00030136,120]
[392879031,1762105425942,500.0,0.00030136,120]
[392879032,1762105425992,500.0,0.00030136,120]
[392879042,1762105426662,500.0,0.00030136,120]
[392879045,1762105426827,500.0,0.00030136,120]
[392879051,1762105427353,500.0,0.00030136,120]
[392879055,1762105427744,500.0,0.00030136,120]
[392879057,1762105428810,500.0,0.00030136,120]
[392879058,1762105428954,1920.25,0.00030136,120]
[392879061,1762105429552,517.00696927,0.00030136,120]
[392879064,1762105429708,501.74194131,0.00030136,120]
[392879082,1762105431379,509.42896714,0.00030136,120]
[392879089,1762105431819,500.0,0.00030136,120]
[392879102,1762105432807,772.42,0.00030136,120]
[392879107,1762105433100,500.0,0.00030136,120]
[392879109,1762105433147,500.0,0.00030136,120]
[392879111,1762105433214,526.87421491,0.00030136,120]
[392879115,1762105433329,500.0,0.00030136,120]
[392879121,1762105433527,500.0,0.00030136,120]
[392879122,1762105433566,500.0,0.00030136,120]
[392879144,1762105434978,500.0,0.00013961,2]
[392879149,1762105435381,500.0,0.00030136,120]
[392879152,1762105435821,500.0,0.00030136,120]
[392879155,1762105436245,514.56,0.00030136,120]
[392879157,1762105436437,500.0,0.00030136,120]
[392879165,1762105437436,500.0,0.00030136,120]
[392879169,1762105437685,500.0,0.00030136,120]
[392879175,1762105438188,500.0,0.00030136,120]
[392879178,1762105438430,861.24,0.00030136,120]
[392879188,1762105439174,500.0,0.00030136,120]
[392879192,1762105439372,276.49313286,0.00030136,120]
[392879194,1762105439530,500.0,0.00030136,120]
[392879200,1762105439899,500.0,0.00030136,120]
[392879207,1762105440468,528.04979013,0.00030136,120]
[392879209,1762105440552,500.0,0.00030136,120]
[392879214,1762105441253,500.0,0.00030136,120]
[392879221,1762105441927,500.0,0.00030136,120]
[392879224,1762105442100,500.0,0.00030136,120]
[392879227,1762105442319,500.0,0.00030136,120]
[392879228,1762105442374,500.0,0.00030136,120]
[392879229,1762105442475,500.0,0.00030136,120]
[392879232,1762105442732,500.0,0.00030136,120]
[392879236,1762105443060,500.0,0.00030136,120]
[392879243,1762105444290,567.93,0.00030136,120]
[392879244,1762105444330,500.0,0.00030136,120]
[392879247,1762105444685,389.32593,0.00030136,120]
[392879253,1762105446030,200.30613354,0.00030136,120]
[392879254,1762105446377,509.84,0.00030136,120]
[392879256,1762105446546,500.0,0.00030136,120]
[392879265,1762105447468,500.0,0.00030136,120]
[392879268,1762105447595,520.71513665,0.00030136,120]
[392879270,1762105447855,500.0,0.00030136,120]
[392879287,1762105449769,500.0,0.00030136,120]
[392879288,1762105449813,288.86636773,0.00030136,120]
[392879290,1762105449958,500.0,0.00030136,120]
[392879291,1762105450043,500.0,0.00030136,120]
[392879293,1762105450162,500.0,0.00030136,120]
[392879304,1762105451128,151.31902807,0.00030136,120]
[392879319,1762105451981,500.0,0.00030136,120]
[392879323,1762105452483,500.0,0.00030136,120]
[392879354,1762105454376,500.0,0.00030136,120]
[392879359,1762105454829,500.0,0.00030136,120]
[392879363,1762105455070,500.0,0.00030136,120]
[392879374,1762105456220,500.0,0.00030136,120]
[392879376,1762105456289,789.62,0.00030136,120]
[392879382,1762105457221,500.0,0.00030136,120]
[392879386,1762105457703,500.0,0.00030136,120]
[392879388,1762105457927,500.0,0.00030136,120]
[392879392,1762105458297,500.0,0.00030136,120]
[392879412,1762105460679,500.0,0.00030136,120]
[392879417,1762105461050,500.0,0.00030136,120]
[392879425,1762105461780,487.40143003,0.00030136,120]
[392879433,1762105462665,500.0,0.00030136,120]
[392879435,1762105462730,500.0,0.00030136,120]
[392879440,1762105463375,500.0,0.00030136,120]
[392879444,1762105463714,500.0,0.00030136,120]
[392879446,1762105463898,500.0,0.00030136,120]
[392879449,1762105464179,268.77203644,0.00030136,120]
[392879450,1762105464221,500.0,0.00030136,120]
[392879451,1762105464266,500.0,0.00030136,120]
[392879457,1762105465085,500.0,0.00030136,120]
[392879462,1762105465655,500.0,0.00030136,120]
[392879465,1762105466080,500.0,0.00030136,120]
[392879469,1762105466640,500.0,0.00030136,120]
[392879470,1762105466696,500.0,0.00030136,120]
[392879479,1762105467661,1056.72,0.00030136,120]
[392879492,1762105468339,500.0,0.00030136,120]
[392879494,1762105468376,500.0,0.00030136,120]
[392879504,1762105469361,500.0,0.00030136,120]
[392879506,1762105469482,500.0,0.00030136,120]
[392879509,1762105469659,500.0,0.00030136,120]
[392879520,1762105470573,500.0,0.00030136,120]
[392879534,1762105471569,500.0,0.00030136,120]
[392879535,1762105471622,500.0,0.00030136,120]
[392879538,1762105471704,500.0,0.00030136,120]
[392879549,1762105472580,500.0,0.00030136,120]
[392879559,1762105473101,500.0,0.00030136,120]
[392879562,1762105473145,500.0,0.00030136,120]
[392879563,1762105473264,500.0,0.00030136,120]
[392879565,1762105473311,1841.39,0.00030136,120]
[392879567,1762105473357,500.0,0.00030136,120]
[392879569,1762105473458,686.21,0.00030136,120]
[392879575,1762105473850,520.13,0.00030136,120]
[392879576,1762105473900,500.0,0.00030136,120]
[392879578,1762105473939,267.85903274,0.00030136,120]
[392879586,1762105474467,355.74398477,0.00030136,120]
[392879587,1762105474521,500.0,0.00030136,120]
[392879594,1762105474900,500.0,0.00030136,120]
[392879603,1762105475871,500.0,0.00030136,120]
[392879608,1762105476270,500.0,0.00030136,120]
[392879611,1762105476396,500.0,0.00030136,120]
[392879625,1762105477414,500.0,0.00030136,120]
[392879644,1762105478254,893.21759391,0.00014581,2]
[392879649,1762105478482,500.0,0.00030136,120]
[392879653,1762105478660,500.0,0.00030136,120]
[392879655,1762105478711,500.0,0.00030136,120]
[392879660,1762105478979,500.0,0.00030136,120]
[392879661,1762105479020,500.0,0.00030136,120]
[392879664,1762105479103,470.51335059,0.00030136,120]
[392879680,1762105480107,500.0,0.00030136,120]
[392879681,1762105480195,7606.79240609,0.0001398,2]
[392879682,1762105480216,848.31759391,0.0001398,2]
[392879687,1762105480776,500.0,0.00030136,120]
[392879691,1762105481142,500.0,0.00030136,120]
[392879697,1762105481579,500.0,0.00030136,120]
[392879700,1762105481648,756.76,0.00030136,120]
[392879710,1762105482146,500.0,0.00030136,120]
[392879712,1762105482247,500.0,0.00030136,120]
[392879717,1762105482544,500.0,0.00030136,120]
[392879723,1762105482910,500.0,0.00030136,120]
[392879728,1762105483213,500.0,0.00030136,120]
[392879735,1762105483726,500.0,0.00030136,120]
[392879742,1762105484320,500.0,0.00030136,120]
[392879745,1762105484523,524.44624238,0.00030136,120]
[392879756,1762105485293,641.28,0.00030136,120]
[392879779,1762105486416,500.0,0.00030136,120]
[392879809,1762105488371,500.0,0.00030136,120]
[392879810,1762105488418,500.0,0.00030136,120]
[392879812,1762105488480,5197.616901,0.00014526,2]
[392879813,1762105488518,500.0,0.00030136,120]
[392879814,1762105488641,993.22,0.00030136,120]
[392879818,1762105489264,345.10742451,0.00030136,120]
[392879819,1762105489306,500.0,0.00030136,120]
[392879823,1762105489616,507.14507454,0.00030136,120]
[392879827,1762105490019,2085.6,0.00030136,120]
[392879835,1762105490563,500.0,0.00030136,120]
[392879840,1762105491213,454.80260621,0.00030136,120]
[392879841,1762105491287,500.0,0.00030136,120]
[392879844,1762105491556,500.0,0.00030136,120]
[392879847,1762105491705,500.0,0.00030136,120]
[392879852,1762105492400,520.28583653,0.00030136,120]
[392879855,1762105492754,500.0,0.00030136,120]
[392879858,1762105492898,534.60151139,0.00030136,120]
[392879860,1762105493111,500.0,0.00030136,120]
[392879861,1762105493254,500.0,0.00030136,120]
[392879863,1762105493290,687.38,0.00030136,120]
[392879870,1762105493787,500.0,0.00030136,120]
[392879880,1762105494708,500.0,0.00030136,120]
[392879882,1762105494870,500.0,0.00030136,120]
[392879890,1762105495780,319.60497369,0.00030136,120]
[392879892,1762105495905,500.0,0.00030136,120]
[392879893,1762105495955,528.13,0.00030136,120]
[392879896,1762105496304,500.0,0.00030136,120]
[392879903,1762105497041,500.0,0.00030136,120]
[392879905,1762105497102,500.0,0.00030136,120]
[392879907,1762105497535,500.0,0.00030136,120]
[392879912,1762105498356,500.0,0.00030136,120]
[392879915,1762105498404,500.0,0.00030136,120]
[392879923,1762105499377,500.0,0.00030136,120]
[392879924,1762105499478,523.37,0.00030136,120]
[392879927,1762105499622,500.0,0.00030136,120]
[392879933,1762105500566,500.0,0.00030136,120]
[392879936,1762105501201,424.0049959,0.00030136,120]
[392879937,1762105501314,500.0,0.00030136,120]
[392879940,1762105501675,501.57,0.00030136,120]
[392879945,1762105502092,500.0,0.00030136,120]
[392879954,1762105502624,500.0,0.00030136,120]
[392879956,1762105502699,500.0,0.00030136,120]
[392879970,1762105503471,892.65,0.00030136,120]
[392879972,1762105503557,500.0,0.00030136,120]
[392879974,1762105503675,500.0,0.00030136,120]
[392879982,1762105504173,700.49,0.00030136,120]
[392879989,1762105504544,500.0,0.00030136,120]
[392879993,1762105504846,596.21,0.00030136,120]
[392879998,1762105505221,500.0,0.00030136,120]
[392880016,1762105506997,500.0,0.00030136,120]
[392880023,1762105507339,500.0,0.00030136,120]
[392880028,1762105507881,500.0,0.00030136,120]
[392880034,1762105508179,500.0,0.00030136,120]
[392880056,1762105510265,500.0,0.00030136,120]
[392880058,1762105510357,500.0,0.00030136,120]
[392880059,1762105510460,500.0,0.00030136,120]
[392880060,1762105510507,518.60206428,0.00030136,120]
[392880062,1762105510747,500.0,0.00030136,120]
[392880063,1762105510790,500.0,0.00030136,120]
[392880066,1762105510964,151.66735742,0.00030136,120]
[392880070,1762105511088,500.0,0.00030136,120]
[392880083,1762105512311,150.0,0.00013488,2]
[392880087,1762105512478,150.0,0.00013488,2]
[392880089,1762105512574,150.0,0.00013488,2]
[392880092,1762105512716,150.0,0.00014237,2]
[392880100,1762105513229,500.0,0.00030136,120]
[392880116,1762105514142,290.0113976,0.00030136,120]
[392880122,1762105514381,533.73424394,0.00030136,120]
[392880139,1762105515117,500.0,0.00030136,120]
[392880145,1762105515296,500.0,0.00030136,120]
[392880161,1762105515846,820.48,0.00030136,120]
[392880169,1762105516144,504.48,0.00030136,120]
[392880174,1762105516279,524.06584363,0.00030136,120]
[392880178,1762105516409,500.0,0.00030136,120]
[392880195,1762105517286,500.0,0.00030136,120]
[392880197,1762105517328,500.0,0.00030136,120]
[392880202,1762105518101,500.0,0.00030136,120]
[392880203,1762105518226,500.0,0.00030136,120]
[392880206,1762105518330,2122.17,0.00030136,120]
[392880217,1762105519529,500.0,0.00030136,120]
[392880218,1762105519595,150.0,0.00013488,2]
[392880220,1762105519636,311.11374601,0.00030136,120]
[392880223,1762105519777,150.0,0.00013488,2]
[392880224,1762105519854,500.0,0.00030136,120]
[392880226,1762105519890,150.0,0.00013488,2]
[392880227,1762105519932,500.0,0.00030136,120]
[392880238,1762105520653,500.0,0.00030136,120]
[392880251,1762105521575,500.0,0.00030136,120]
[392880254,1762105521676,500.0,0.00030136,120]
[392880259,1762105522015,806.78,0.00030136,120]
[392880266,1762105522602,500.0,0.00030136,120]
[392880268,1762105522682,349.37578859,0.00030136,120]
[392880272,1762105522847,503.4280046,0.00030136,120]
[392880274,1762105522906,739.55,0.00030136,120]
[392880280,1762105523246,500.0,0.00030136,120]
[392880286,1762105523726,500.0,0.00030136,120]
[392880290,1762105523916,500.0,0.00030136,120]
[392880297,1762105524603,532.71086682,0.00030136,120]
[392880298,1762105524661,500.0,0.00030136,120]
[392880299,1762105524712,500.0,0.00030136,120]
[392880300,1762105524816,500.0,0.00030136,120]
[392880304,1762105525355,281.25956479,0.00030136,120]
[392880306,1762105525536,500.0,0.00030136,120]
[392880310,1762105525892,500.0,0.00030136,120]
[392880315,1762105526128,500.0,0.00030136,120]
[392880335,1762105526963,553.38,0.00030136,120]
[392880337,1762105527006,500.0,0.00030136,120]
[392880342,1762105527193,538.65397447,0.00030136,120]
[392880353,1762105527632,500.0,0.00030136,120]
[392880360,1762105528391,500.0,0.00030136,120]
[392880366,1762105528655,500.0,0.00030136,120]
[392880370,1762105528848,500.0,0.00030136,120]
[392880395,1762105530658,557.90302663,0.00030136,120]
[392880400,1762105530889,521.47203198,0.00030136,120]
[392880401,1762105530978,223.99402379,0.00030136,120]
[392880407,1762105531392,500.0,0.00030136,120]
[392880409,1762105531537,500.0,0.00030136,120]
[392880415,1762105532065,520.05877743,0.00030136,120]
[392880423,1762105532454,500.0,0.00030136,120]
[392880428,1762105532669,500.0,0.00030136,120]
[392880435,1762105533016,150.0,0.00013488,2]
[392880438,1762105533142,279.01949361,0.00013488,2]
[392880444,1762105533446,500.0,0.00030136,120]
[392880446,1762105533494,500.0,0.00030136,120]
[392880449,1762105533547,150.0,0.00013488,2]
[392880451,1762105533599,150.0,0.00014237,2]
[392880453,1762105533647,481.29707194,0.00030136,120]
[392880460,1762105533871,542.97061798,0.00030136,120]
[392880475,1762105534589,561.15,0.00030136,120]
[392880497,1762105535529,600.4362598,0.00030136,120]
[392880501,1762105535717,517.19562203,0.00030136,120]
[392880503,1762105535760,500.0,0.00030136,120]
[392880505,1762105535959,500.0,0.00030136,120]
[392880507,1762105535999,1222.91,0.00030136,120]
[392880512,1762105536541,518.34545463,0.00030136,120]
[392880516,1762105536744,906.4,0.00030136,120]
[392880521,1762105537062,500.0,0.00030136,120]
[392880528,1762105537398,500.0,0.00030136,120]
[392880538,1762105538008,751.24,0.00030136,120]
[392880540,1762105538053,692.24,0.00030136,120]
[392880545,1762105538330,500.0,0.00030136,120]
[392880547,1762105538372,500.0,0.00030136,120]
[392880548,1762105538567,500.0,0.00030136,120]
[392880553,1762105538925,269.17781027,0.00030136,120]
[392880555,1762105538966,500.0,0.00030136,120]
[392880559,1762105539197,500.0,0.00030136,120]
[392880563,1762105539548,721.28,0.00030136,120]
[392880578,1762105541014,500.0,0.00030136,120]
[392880584,1762105541828,500.0,0.00030136,120]
[392880587,1762105541957,500.0,0.00030136,120]
[392880590,1762105542202,500.0,0.00030136,120]
[392880593,1762105542389,500.0,0.00030136,120]
[392880602,1762105542930,500.0,0.00030136,120]
[392880606,1762105543290,500.0,0.00030136,120]
[392880613,1762105543608,178.40761073,0.00030136,120]
[392880616,1762105543765,500.0,0.00030136,120]
[392880623,1762105544126,500.0,0.00030136,120]
[392880629,1762105544787,412.29229383,0.00030136,120]
[392880633,1762105545876,500.0,0.00030136,120]
[392880634,1762105545919,512.44,0.00030136,120]
[392880635,1762105545962,500.0,0.00030136,120]
[392880636,1762105546025,500.0,0.00030136,120]
[392880637,1762105546211,500.0,0.00030136,120]
[392880641,1762105546636,500.0,0.00030136,120]
[392880643,1762105546698,500.0,0.00030136,120]
[392880645,1762105546843,500.0,0.00030136,120]
[392880647,1762105547208,500.0,0.00030136,120]
[392880648,1762105547253,500.0,0.00030136,120]
[392880650,1762105547334,668.58,0.00030136,120]
[392880651,1762105547375,500.0,0.00030136,120]
[392880652,1762105547425,500.0,0.00030136,120]
[392880653,1762105547958,500.0,0.00030136,120]
[392880654,1762105548184,500.0,0.00030136,120]
[392880662,1762105548938,500.0,0.00030136,120]
[392880665,1762105549049,361.77366109,0.00030136,120]
[392880676,1762105549840,500.0,0.00030136,120]
[392880677,1762105550002,514.25,0.00030136,120]
[392880685,1762105550444,500.0,0.00030136,120]
[392880697,1762105551280,500.0,0.00030136,120]
[392880700,1762105551349,500.0,0.00030136,120]
[392880701,1762105551414,168.18584126,0.00030136,120]
[392880703,1762105551479,500.0,0.00030136,120]
[392880722,1762105553064,175.47370159,0.00014536,2]
[392880724,1762105553153,500.0,0.00030136,120]
[392880725,1762105553195,500.0,0.00030136,120]
[392880731,1762105553511,500.0,0.00030136,120]
[392880735,1762105553766,623.52253394,0.00030136,120]
[392880762,1762105554813,500.0,0.00030136,120]
[392880763,1762105555184,504.55,0.00030136,120]
[392880767,1762105555627,500.0,0.00030136,120]
[392880768,1762105555667,477.59056164,0.00030136,120]
[392880769,1762105555737,500.0,0.00030136,120]
[392880773,1762105556094,500.0,0.00030136,120]
[392880774,1762105556149,518.55881644,0.00030136,120]
[392880775,1762105556193,500.0,0.00030136,120]
[392880777,1762105556362,500.0,0.00030136,120]
[392880780,1762105556717,527.7226737,0.00030136,120]
[392880791,1762105557521,500.0,0.00030136,120]
[392880793,1762105557629,500.0,0.00030136,120]
[392880796,1762105557782,174.49165692,0.00030136,120]
[392880798,1762105557830,221.55851616,0.00030136,120]
[392880799,1762105557898,514.94451255,0.00030136,120]
[392880801,1762105558050,500.0,0.00030136,120]
[392880802,1762105558149,500.0,0.00030136,120]
[392880805,1762105558584,500.0,0.00030136,120]
[392880807,1762105558931,500.0,0.00030136,120]
[392880810,1762105559290,468.03595379,0.00030136,120]
[392880812,1762105559445,519.44520573,0.00030136,120]
[392880813,1762105559616,1360.77,0.00030136,120]
[392880814,1762105559665,581.28,0.00030136,120]
[392880815,1762105559834,500.0,0.00030136,120]
[392880817,1762105560829,500.0,0.00030136,120]
[392880818,1762105560876,500.0,0.00030136,120]
[392880819,1762105560988,500.0,0.00030136,120]
[392880835,1762105562607,500.0,0.00030136,120]
[392880836,1762105562772,500.0,0.00030136,120]
[392880839,1762105562999,519.00685271,0.00030136,120]
[392880841,1762105563042,602.32,0.00030136,120]
[392880853,1762105564498,500.0,0.00030136,120]
[392880856,1762105564621,578.76,0.00030136,120]
[392880857,1762105564721,500.0,0.00030136,120]
[392880860,1762105565017,500.0,0.00030136,120]
[392880863,1762105565090,500.0,0.00030136,120]
[392880865,1762105565335,500.0,0.00030136,120]
[392880872,1762105565894,584.26,0.00030136,120]
[392880873,1762105565936,1913.29,0.00030136,120]
[392880876,1762105566145,300.0,0.00030136,120]
[392880879,1762105566780,500.0,0.00030136,120]
[392880883,1762105567497,500.0,0.00030136,120]
[392880885,1762105567583,500.0,0.00030136,120]
[392880887,1762105568383,500.0,0.00030136,120]
[392880896,1762105570735,500.0,0.00030136,120]
[392880899,1762105571012,500.0,0.00030136,120]
[392880900,1762105571075,500.0,0.00030136,120]
[392880902,1762105571125,535.61196088,0.00030136,120]
[392880904,1762105571241,500.0,0.00030136,120]
[392880906,1762105571394,500.0,0.00030136,120]
[392880908,1762105571443,500.0,0.00030136,120]
[392880911,1762105571782,500.0,0.00030136,120]
[392880924,1762105573252,500.0,0.00030136,120]
[392880928,1762105573698,1454.83,0.00030136,120]
[392880930,1762105573987,500.0,0.00030136,120]
[392880931,1762105574050,525.92084603,0.00030136,120]
[392880934,1762105574577,568.13029475,0.00030136,120]
[392880936,1762105574794,500.0,0.00030136,120]
[392880940,1762105575770,500.0,0.00030136,120]
[392880945,1762105576692,500.0,0.00030136,120]
[392880954,1762105577363,500.0,0.00030136,120]
[392880958,1762105577487,500.0,0.00030136,120]
[392880964,1762105577770,1209.52,0.00030136,120]
[392880969,1762105578073,500.0,0.00030136,120]
[392880980,1762105579199,500.0,0.00030136,120]
[392880990,1762105580116,578.8280023,0.00030136,120]
[392881001,1762105580558,731.07,0.00030136,120]
[392881007,1762105580764,500.0,0.00030136,120]
[392881023,1762105581475,500.0,0.00030136,120]
[392881025,1762105581527,500.0,0.00030136,120]
[392881027,1762105581734,664.69,0.00030136,120]
[392881029,1762105581952,500.0,0.00030136,120]
[392881030,1762105582018,537.68,0.00030136,120]
[392881041,1762105583320,632.53719867,0.00030136,120]
[392881042,1762105583970,500.0,0.00030136,120]
[392881044,1762105584029,500.0,0.00030136,120]
[392881047,1762105584546,500.0,0.00030136,120]
[392881048,1762105584624,507.04290158,0.00030136,120]
[392881059,1762105585234,531.9583897,0.00030136,120]
[392881060,1762105585276,500.0,0.00030136,120]
[392881072,1762105586013,500.0,0.00030136,120]
[392881085,1762105586874,500.0,0.00030136,120]
[392881090,1762105587201,500.0,0.00030136,120]
[392881092,1762105587540,607.8,0.00030136,120]
[392881102,1762105588706,500.0,0.00030136,120]
[392881103,1762105588767,500.0,0.00030136,120]
[392881104,1762105588820,500.0,0.00030136,120]
[392881106,1762105588897,601.30591484,0.00030136,120]
[392881107,1762105588958,500.0,0.00030136,120]
[392881110,1762105589251,500.0,0.00030136,120]
[392881116,1762105589919,500.0,0.00030136,120]
[392881122,1762105590287,500.0,0.00030136,120]
[392881124,1762105590376,500.0,0.00030136,120]
[392881126,1762105590459,500.0,0.00030136,120]
[392881129,1762105590646,500.0,0.00030136,120]
[392881133,1762105590846,560.91389601,0.00030136,120]
[392881151,1762105592150,500.0,0.00030136,120]
[392881155,1762105592447,1132.1,0.00030136,120]
[392881157,1762105592571,500.0,0.00030136,120]